[Event "Asian Academies Hybrid Chess-ch 2021"]
[Site "Tornelo"]
[Date "2021.11.21"]
[Round "3.2"]
[White "Amarathunga, Kosala Sandeepa Cham"]
[Black "Kazi Afsan Rawnak, Anan"]
[Result "0-1"]
[ECO "B52"]
[WhiteElo "1353"]
[BlackElo "1410"]
[Annotator "NA RC"]
[PlyCount "70"]
[EventDate "2021.11.21"]
[EventCountry "NET"]
[SourceTitle "playchess.com"]
[Source "ChessBase"]
[SourceQuality "1"]
[TimeControl "3600+30"]

1. e4 {[%emt 0:02:49]} c5 {[%emt 0:00:46]} 2. Nf3 {[%emt 0:00:37]} d6 {[%emt 0:00:28]} 3. Bb5+ {[%emt 0:00:24]} Bd7 {[%emt 0:01:19]} 4. Bxd7+ {[%emt 0:00:37]} Qxd7 {[%emt 0:01:53]} 5. O-O {[%emt 0:00:49]} Nf6 {[%emt 0:01:11]} 6. Re1 {[%emt 0:00:39]} e5 {[%emt 0:01:53]} 7. c3 {[%emt 0:00:19]} Nc6 {[%emt 0:02:11]} 8. d4 {[%emt 0:02:58]} cxd4 {[%emt 0:02:26]} 9. cxd4 {[%emt 0:00:16]} Be7 {[%emt 0:03:35]} 10. Nc3 {[%emt 0:02:02]} O-O {[%emt 0:01:26]} 11. d5 {[%emt 0:05:14]} Nb4 {[%emt 0:02:54]} 12. Nh4 {[%emt 0:00:22]} Qg4 {[%emt 0:02:22]} 13. Nf5 {[%emt 0:00:33]} Rfe8 {[%emt 0:02:41]} 14. Qd2 {[%emt 0:06:07]} Rac8 {[%emt 0:03:52]} 15. Re3 {[%emt 0:08:45]} Nh5 {[%emt 0:06:43]} 16. Rh3 {[%emt 0:07:41]} Kh8 {[%emt 0:11:22]} 17. a3 {[%emt 0:00:59]} Na6 {[%emt 0:01:45]} 18. Qe1 {[%emt 0:00:18]} Nc5 {[%emt 0:00:57]} 19. f3 {[%emt 0:00:26]} Qg6 {[%emt 0:00:23]} 20. Nxe7 {[%emt 0:00:05]} Rxe7 {[%emt 0:01:42]} 21. Qh4 {[%emt 0:00:22]} Nf6 {[%emt 0:01:17]} 22. Bd2 {[%emt 0:06:36]} Nb3 {[%emt 0:03:06]} 23. Rd1 {[%emt 0:01:50]} Nxd2 {[%emt 0:00:53]} 24. Rxd2 {[%emt 0:00:05]} Rec7 {[%emt 0:00:41]} 25. g4 {[%emt 0:03:10]} Nd7 {[%emt 0:03:56]} 26. Qf2 {[%emt 0:01:35]} a6 {[%emt 0:00:55]} 27. Rg3 {[%emt 0:00:11]} Qg5 {[%emt 0:00:47]} 28. Kg2 {[%emt 0:04:01]} Nb6 {[%emt 0:00:57]} 29. h4 {[%emt 0:04:26]} Qf4 {[%emt 0:00:49]} 30. Re2 {[%emt 0:09:40]} Nc4 {[%emt 0:00:19]} 31. Kh3 {[%emt 0:01:04]} Nxb2 {[%emt 0:04:25]} 32. Rxb2 {[%emt 0:00:05]} Rxc3 {[%emt 0:00:02]} 33. Rxb7 {[%emt 0:00:03]} Rxa3 {[%emt 0:02:05]} 34. Qb2 {[%emt 0:00:10]} Rxf3 {[%emt 0:00:18]} 35. Rb3 {[%emt 0:00:34]} Qxg3# {[%emt 0:00:05]} 0-1

[Event "Asian Academies Hybrid Chess-ch 2021"]
[Site "Tornelo"]
[Date "2021.11.21"]
[Round "3.2"]
[White "Newansa, M Esandi"]
[Black "Ridwan, Rabbani"]
[Result "1-0"]
[ECO "D02"]
[WhiteElo "1121"]
[BlackElo "1170"]
[Annotator "NA RC"]
[PlyCount "103"]
[EventDate "2021.11.21"]
[EventCountry "NET"]
[SourceTitle "playchess.com"]
[Source "ChessBase"]
[SourceQuality "1"]
[TimeControl "3600+30"]

1. d4 {[%emt 0:00:30]} Nf6 {[%emt 0:00:36]} 2. Bf4 {[%emt 0:00:04]} g6 {[%emt 0:00:03]} 3. e3 {[%emt 0:00:03]} Bg7 {[%emt 0:00:02]} 4. Nf3 {[%emt 0:00:05]} O-O {[%emt 0:00:06]} 5. c3 {[%emt 0:00:05]} d5 {[%emt 0:00:15]} 6. Nbd2 {[%emt 0:00:07]} e6 {[%emt 0:00:05]} 7. Bd3 {[%emt 0:00:16]} Nbd7 {[%emt 0:00:01]} 8. O-O {[%emt 0:00:06]} c5 {[%emt 0:00:02]} 9. Bd6 {[%emt 0:00:22]} Re8 {[%emt 0:00:17]} 10. Bxc5 {[%emt 0:00:09]} Nxc5 {[%emt 0:00:01]} 11. dxc5 {[%emt 0:00:02]} Ng4 {[%emt 0:00:05]} 12. h3 {[%emt 0:00:39]} Ne5 {[%emt 0:00:45]} 13. Nxe5 {[%emt 0:00:58]} Bxe5 {[%emt 0:00:21]} 14. Nb3 {[%emt 0:01:28]} Bb8 {[%emt 0:00:08]} 15. f4 {[%emt 0:00:48]} e5 {[%emt 0:00:20]} 16. f5 {[%emt 0:01:11]} e4 {[%emt 0:00:26]} 17. fxg6 {[%emt 0:00:36]} hxg6 {[%emt 0:00:10]} 18. Bb5 {[%emt 0:00:23]} Re5 {[%emt 0:00:21]} 19. Qe1 {[%emt 0:03:44]} Rh5 {[%emt 0:00:26]} 20. Qf2 {[%emt 0:00:29]} f5 {[%emt 0:00:46]} 21. Be2 {[%emt 0:01:17]} Qc7 {[%emt 0:00:28]} 22. Rfd1 {[%emt 0:01:20]} Qh2+ {[%emt 0:00:07]} 23. Kf1 {[%emt 0:00:02]} Rg5 {[%emt 0:00:20]} 24. Rxd5 {[%emt 0:00:12]} Be6 {[%emt 0:01:07]} 25. Rd2 {[%emt 0:00:40]} f4 {[%emt 0:00:32]} 26. Rd8+ {[%emt 0:00:58]} Kg7 {[%emt 0:00:10]} 27. exf4 {[%emt 0:00:02]} Rf5 {[%emt 0:00:20]} 28. Nd4 {[%emt 0:00:16]} Qh1+ {[%emt 0:00:17]} 29. Qg1 {[%emt 0:00:08]} Rxf4+ {[%emt 0:00:01]} 30. Bf3 {[%emt 0:00:08]} Bc4+ {[%emt 0:01:13]} 31. Kf2 {[%emt 0:00:11]} Qxg1+ {[%emt 0:00:21]} 32. Rxg1 {[%emt 0:00:17]} exf3 {[%emt 0:00:03]} 33. gxf3 {[%emt 0:00:22]} Rf8 {[%emt 0:00:42]} 34. Rxf8 {[%emt 0:00:26]} Kxf8 {[%emt 0:02:44]} 35. Rxg6 {[%emt 0:00:07]} Bxa2 {[%emt 0:00:05]} 36. h4 {[%emt 0:00:40]} Bf7 {[%emt 0:00:07]} 37. Rg1 {[%emt 0:00:09]} Be5 {[%emt 0:00:02]} 38. Ke3 {[%emt 0:00:26]} Bxd4+ {[%emt 0:00:09]} 39. cxd4 {[%emt 0:00:07]} Bh5 {[%emt 0:00:04]} 40. Rg5 {[%emt 0:00:04]} Re8+ {[%emt 0:00:09]} 41. Kd3 {[%emt 0:00:10]} Bxf3 {[%emt 0:00:13]} 42. Rf5+ {[%emt 0:00:03]} Kg7 {[%emt 0:00:12]} 43. Rxf3 {[%emt 0:00:02]} Rh8 {[%emt 0:00:07]} 44. Rf4 {[%emt 0:00:04]} Kg6 {[%emt 0:00:03]} 45. Kc4 {[%emt 0:00:03]} Re8 {[%emt 0:00:17]} 46. Kd5 {[%emt 0:00:06]} Rd8+ {[%emt 0:00:07]} 47. Ke6 {[%emt 0:00:03]} Rxd4 {[%emt 0:00:02]} 48. Rxd4 {[%emt 0:00:03]} Kh5 {[%emt 0:00:28]} 49. Kf6 {[%emt 0:00:11]} b6 {[%emt 0:00:08]} 50. c6 {[%emt 0:00:02]} b5 {[%emt 0:00:04]} 51. c7 {[%emt 0:00:01]} b4 {[%emt 0:00:01]} 52. c8=Q {[%emt 0:00:03]} 1-0

[Event "Asian Academies Hybrid Chess-ch 2021"]
[Site "Tornelo"]
[Date "2021.11.21"]
[Round "3.3"]
[White "Sadeghi Shoormasti, Ali"]
[Black "Khaled waleed Abdullah"]
[Result "0-1"]
[ECO "D02"]
[WhiteElo "1751"]
[BlackElo "1568"]
[Annotator "NA RC"]
[PlyCount "150"]
[EventDate "2021.11.21"]
[EventCountry "NET"]
[SourceTitle "playchess.com"]
[Source "ChessBase"]
[SourceQuality "1"]
[TimeControl "3600+30"]

1. d4 {[%emt 0:01:02]} Nf6 {[%emt 0:01:18]} 2. Nf3 {[%emt 0:00:17]} e6 {[%emt 0:00:12]} 3. Bf4 {[%emt 0:00:25]} d5 {[%emt 0:00:05]} 4. e3 {[%emt 0:03:12]} Bd6 {[%emt 0:00:10]} 5. Bg3 {[%emt 0:00:14]} O-O {[%emt 0:00:07]} 6. Bd3 {[%emt 0:00:08]} c5 {[%emt 0:00:26]} 7. c3 {[%emt 0:00:30]} Nc6 {[%emt 0:00:06]} 8. O-O {[%emt 0:00:09]} b6 {[%emt 0:00:06]} 9. Nbd2 {[%emt 0:00:22]} Bb7 {[%emt 0:00:20]} 10. Rc1 {[%emt 0:01:54]} Rc8 {[%emt 0:03:17]} 11. Bb1 {[%emt 0:00:20]} Ne7 {[%emt 0:01:10]} 12. Bh4 {[%emt 0:00:50]} Ne4 {[%emt 0:07:50]} 13. Nxe4 {[%emt 0:01:31]} dxe4 {[%emt 0:00:09]} 14. Nd2 {[%emt 0:00:47]} f5 {[%emt 0:05:14]} 15. a3 {[%emt 0:01:49]} Qe8 {[%emt 0:04:48]} 16. dxc5 {[%emt 0:00:43]} Bxc5 {[%emt 0:03:17]} 17. b4 {[%emt 0:00:26]} Ng6 {[%emt 0:03:02]} 18. Qh5 {[%emt 0:04:40]} Be7 {[%emt 0:04:03]} 19. Bxe7 {[%emt 0:00:28]} Qxe7 {[%emt 0:00:07]} 20. Ba2 {[%emt 0:01:02]} Ne5 {[%emt 0:01:27]} 21. Bb1 {[%emt 0:02:28]} Rf6 {[%emt 0:04:14]} 22. Qh4 {[%emt 0:01:20]} Rd8 {[%emt 0:08:39]} 23. Rfd1 {[%emt 0:02:03]} Kh8 {[%emt 0:04:22]} 24. Kh1 {[%emt 0:00:55]} Qd6 {[%emt 0:01:54]} 25. Bc2 {[%emt 0:01:41]} Rh6 {[%emt 0:01:54]} 26. Qg3 {[%emt 0:01:24]} Ng4 {[%emt 0:06:50]} 27. Nf1 {[%emt 0:01:23]} Qe7 {[%emt 0:01:44]} 28. Rxd8+ {[%emt 0:00:24]} Qxd8 {[%emt 0:00:04]} 29. Rd1 {[%emt 0:00:04]} Qc8 {[%emt 0:00:51]} 30. Kg1 {[%emt 0:00:39]} Bd5 {[%emt 0:02:17]} 31. Rd4 {[%emt 0:01:01]} Nf6 {[%emt 0:00:15]} 32. Qe5 {[%emt 0:02:35]} Nd7 {[%emt 0:01:59]} 33. Qg3 {[%emt 0:01:11]} Qxc3 {[%emt 0:00:23]} 34. Ba4 {[%emt 0:00:08]} Nf6 {[%emt 0:00:46]} 35. Qb8+ {[%emt 0:00:06]} Ng8 {[%emt 0:00:04]} 36. Be8 {[%emt 0:00:21]} Rf6 {[%emt 0:00:30]} 37. Qxa7 {[%emt 0:00:19]} Qc1 {[%emt 0:00:51]} 38. Qa4 {[%emt 0:00:32]} Rf8 {[%emt 0:00:48]} 39. Rd1 {[%emt 0:00:57]} Qc3 {[%emt 0:00:05]} 40. Bd7 {[%emt 0:01:14]} Bb3 {[%emt 0:00:28]} 41. Rc1 {[%emt 0:00:21]} Bxa4 {[%emt 0:00:46]} 42. Rxc3 {[%emt 0:00:04]} Bxd7 {[%emt 0:00:06]} 43. h3 {[%emt 0:00:06]} Nf6 {[%emt 0:00:06]} 44. Nd2 {[%emt 0:00:13]} Rc8 {[%emt 0:00:09]} 45. Rb3 {[%emt 0:00:06]} Ba4 {[%emt 0:00:07]} 46. Rb2 {[%emt 0:00:07]} Nd5 {[%emt 0:00:13]} 47. Kh2 {[%emt 0:00:10]} Rc3 {[%emt 0:00:09]} 48. Ra2 {[%emt 0:00:35]} Kg8 {[%emt 0:00:25]} 49. Nf1 {[%emt 0:00:40]} Rc2 {[%emt 0:00:21]} 50. Ra1 {[%emt 0:00:54]} Rxf2 {[%emt 0:00:10]} 51. Rc1 {[%emt 0:00:21]} Rc2 {[%emt 0:00:05]} 52. Rb1 {[%emt 0:00:15]} b5 {[%emt 0:00:11]} 53. Kg3 {[%emt 0:01:25]} Rc3 {[%emt 0:00:31]} 54. Kf2 {[%emt 0:00:10]} Rxa3 {[%emt 0:00:31]} 55. Rc1 {[%emt 0:04:46]} Nxb4 {[%emt 0:06:49]} 56. Rc7 {[%emt 0:00:12]} Nd3+ {[%emt 0:00:05]} 57. Kg3 {[%emt 0:00:06]} b4 {[%emt 0:00:31]} 58. Nd2 {[%emt 0:00:07]} Ra2 {[%emt 0:01:31]} 59. Nc4 {[%emt 0:00:04]} Rc2 {[%emt 0:00:10]} 60. Rc8+ {[%emt 0:09:45]} Kf7 {[%emt 0:00:10]} 61. Nd6+ {[%emt 0:02:47]} Ke7 {[%emt 0:00:05]} 62. Ra8 {[%emt 0:00:19]} Kxd6 {[%emt 0:00:11]} 63. Ra6+ {[%emt 0:00:22]} Bc6 {[%emt 0:00:04]} 64. Rb6 {[%emt 0:00:08]} Kc5 {[%emt 0:00:04]} 65. Rb8 {[%emt 0:00:04]} Kd6 {[%emt 0:00:20]} 66. Rd8+ {[%emt 0:00:13]} Kc7 {[%emt 0:00:03]} 67. Rd4 {[%emt 0:00:04]} b3 {[%emt 0:00:03]} 68. Kh4 {[%emt 0:00:23]} b2 {[%emt 0:00:04]} 69. g4 {[%emt 0:00:05]} b1=Q {[%emt 0:00:05]} 70. Kg5 {[%emt 0:00:06]} fxg4 {[%emt 0:00:04]} 71. hxg4 {[%emt 0:00:05]} Rc5+ {[%emt 0:00:06]} 72. Kh4 {[%emt 0:00:03]} Qh1+ {[%emt 0:00:09]} 73. Kg3 {[%emt 0:00:06]} Rc2 {[%emt 0:00:12]} 74. Rd7+ {[%emt 0:00:13]} Kxd7 {[%emt 0:00:04]} 75. g5 {[%emt 0:00:04]} Rg2# {[%emt 0:00:04]} 0-1

[Event "Asian Academies Hybrid Chess-ch 2021"]
[Site "Tornelo"]
[Date "2021.11.21"]
[Round "3.3"]
[White "Husam Al-Dain Abdulhakim Nashe"]
[Black "Alizadeh, Amirhosein"]
[Result "1-0"]
[ECO "B22"]
[WhiteElo "1342"]
[BlackElo "1688"]
[Annotator "NA RC"]
[PlyCount "41"]
[EventDate "2021.11.21"]
[EventCountry "NET"]
[SourceTitle "playchess.com"]
[Source "ChessBase"]
[SourceQuality "1"]
[TimeControl "3600+30"]

1. e4 {[%emt 0:01:32]} c5 {[%emt 0:01:21]} 2. Nf3 {[%emt 0:02:07]} Nc6 {[%emt 0:00:05]} 3. c3 {[%emt 0:00:18]} d5 {[%emt 0:00:08]} 4. exd5 {[%emt 0:02:14]} Qxd5 {[%emt 0:00:10]} 5. d4 {[%emt 0:00:52]} e6 {[%emt 0:00:49]} 6. Bd3 {[%emt 0:01:28]} cxd4 {[%emt 0:01:47]} 7. cxd4 {[%emt 0:00:17]} Bb4+ {[%emt 0:03:30]} 8. Nc3 {[%emt 0:04:31]} Nf6 {[%emt 0:06:54]} 9. O-O {[%emt 0:02:28]} Bxc3 {[%emt 0:02:58]} 10. bxc3 {[%emt 0:00:08]} Qa5 {[%emt 0:15:09]} 11. Bg5 {[%emt 0:04:46]} Bd7 {[%emt 0:27:55]} 12. Qb3 {[%emt 0:02:25]} h6 {[%emt 0:00:40]} 13. Bh4 {[%emt 0:00:21]} Nd5 {[%emt 0:00:57]} 14. c4 {[%emt 0:00:28]} Nf4 {[%emt 0:00:25]} 15. d5 {[%emt 0:00:15]} Nb4 {[%emt 0:01:21]} 16. dxe6 {[%emt 0:01:25]} Bxe6 {[%emt 0:00:48]} 17. Bb1 {[%emt 0:00:06]} O-O {[%emt 0:01:07]} 18. Be7 {[%emt 0:00:09]} Na6 {[%emt 0:01:04]} 19. Bxf8 {[%emt 0:00:07]} Rxf8 {[%emt 0:00:06]} 20. Qe3 {[%emt 0:00:43]} Bxc4 {[%emt 0:00:51]} 21. Qe4 {[%emt 0:00:42]} 1-0

[Event "Asian Academies Hybrid Chess-ch 2021"]
[Site "Tornelo"]
[Date "2021.11.21"]
[Round "4.1"]
[White "Shadat, Kibria Ayaan"]
[Black "Akrami, Tohid"]
[Result "1/2-1/2"]
[ECO "C01"]
[WhiteElo "1623"]
[BlackElo "1075"]
[Annotator "NA RC"]
[PlyCount "92"]
[EventDate "2021.11.21"]
[EventCountry "NET"]
[SourceTitle "playchess.com"]
[Source "ChessBase"]
[SourceQuality "1"]
[TimeControl "3600+30"]

1. e4 {[%emt 0:00:40]} e6 {[%emt 0:10:24]} 2. d4 {[%emt 0:00:04]} d5 {[%emt 0:00:11]} 3. exd5 {[%emt 0:00:01]} exd5 {[%emt 0:00:27]} 4. Nf3 {[%emt 0:00:05]} Nf6 {[%emt 0:00:05]} 5. Bd3 {[%emt 0:00:02]} Bd6 {[%emt 0:00:10]} 6. O-O {[%emt 0:00:33]} O-O {[%emt 0:00:25]} 7. Bg5 {[%emt 0:00:19]} Bg4 {[%emt 0:00:31]} 8. Nbd2 {[%emt 0:00:27]} Nbd7 {[%emt 0:00:16]} 9. c3 {[%emt 0:02:19]} c6 {[%emt 0:00:41]} 10. Qc2 {[%emt 0:00:51]} h6 {[%emt 0:00:26]} 11. Bh4 {[%emt 0:01:58]} Re8 {[%emt 0:01:59]} 12. h3 {[%emt 0:05:17]} Bxf3 {[%emt 0:02:48]} 13. Nxf3 {[%emt 0:00:11]} Qc7 {[%emt 0:00:23]} 14. Bxf6 {[%emt 0:04:56]} Nxf6 {[%emt 0:00:38]} 15. Rae1 {[%emt 0:00:24]} b6 {[%emt 0:02:36]} 16. c4 {[%emt 0:11:19]} Nh5 {[%emt 0:05:22]} 17. cxd5 {[%emt 0:03:39]} cxd5 {[%emt 0:00:31]} 18. Qxc7 {[%emt 0:03:25]} Bxc7 {[%emt 0:04:54]} 19. Bb5 {[%emt 0:01:33]} Re6 {[%emt 0:01:30]} 20. Rxe6 {[%emt 0:07:36]} fxe6 {[%emt 0:00:24]} 21. Re1 {[%emt 0:03:18]} Nf4 {[%emt 0:00:22]} 22. g3 {[%emt 0:02:41]} Nxh3+ {[%emt 0:01:26]} 23. Kg2 {[%emt 0:00:07]} Ng5 {[%emt 0:00:54]} 24. Nxg5 {[%emt 0:00:06]} hxg5 {[%emt 0:00:08]} 25. Rxe6 {[%emt 0:00:34]} Kf7 {[%emt 0:00:58]} 26. Rc6 {[%emt 0:02:29]} Bd8 {[%emt 0:01:33]} 27. Rd6 {[%emt 0:00:45]} Bf6 {[%emt 0:01:23]} 28. Rxd5 {[%emt 0:03:53]} Rd8 {[%emt 0:01:07]} 29. Rxd8 {[%emt 0:00:47]} Bxd8 {[%emt 0:01:07]} 30. Kf3 {[%emt 0:01:16]} Bf6 {[%emt 0:00:14]} 31. Ke4 {[%emt 0:00:06]} Ke6 {[%emt 0:00:07]} 32. a4 {[%emt 0:01:28]} Kd6 {[%emt 0:00:39]} 33. Ba6 {[%emt 0:00:50]} Ke6 {[%emt 0:00:37]} 34. b4 {[%emt 0:00:33]} Be7 {[%emt 0:00:26]} 35. Bc4+ {[%emt 0:01:34]} Kd6 {[%emt 0:13:24]} 36. b5 {[%emt 0:00:17]} Bf6 {[%emt 0:00:58]} 37. Bd5 {[%emt 0:00:53]} Kd7 {[%emt 0:00:14]} 38. f3 {[%emt 0:00:36]} Kd6 {[%emt 0:01:28]} 39. Bc6 {[%emt 0:00:10]} Ke6 {[%emt 0:01:15]} 40. f4 {[%emt 0:02:37]} gxf4 {[%emt 0:00:40]} 41. gxf4 {[%emt 0:00:15]} g5 {[%emt 0:00:12]} 42. fxg5 {[%emt 0:07:11]} Bxg5 {[%emt 0:00:05]} 43. d5+ {[%emt 0:00:47]} Kd6 {[%emt 0:00:06]} 44. Kf5 {[%emt 0:00:03]} Bh4 {[%emt 0:00:07]} 45. Ba8 {[%emt 0:00:19]} Be7 {[%emt 0:08:12]} 46. Bb7 {[%emt 0:00:11]} Bh4 {[%emt 0:00:06]} 1/2-1/2

[Event "Asian Academies Hybrid Chess-ch 2021"]
[Site "Tornelo"]
[Date "2021.11.21"]
[Round "4.2"]
[White "Bahadori, Arash"]
[Black "Husam Al-Dain Abdulhakim Nashe"]
[Result "1-0"]
[ECO "A45"]
[WhiteElo "1835"]
[BlackElo "1342"]
[Annotator "NA RC"]
[PlyCount "113"]
[EventDate "2021.11.21"]
[EventCountry "NET"]
[SourceTitle "playchess.com"]
[Source "ChessBase"]
[SourceQuality "1"]
[TimeControl "3600+30"]

{[%evp 8,113,2,3,18,10,3,4,46,38,52,44,83,83,74,70,87,102,93,85,146,126,146,146,214,210,320,347,341,350,358,258,394,375,367,372,362,378,405,403,395,402,443,440,438,460,528,545,544,468,555,430,432,418,523,541,508,497,495,553,535,558,608,614,668,624,644,635,32767,32767,32767,32767,737,729,1028,1031,941,1020,1205,1139,1088,1033,1735,993,768,0,1618,858,891,889,1072,1195,1647,2534,5795,1687,1826,6185,29973,29983,29983,29984,29989,29990,29990,29991,29991,29992]} 1. d4 {[%emt 0:00:30]} Nf6 {[%emt 0:03:15]} 2. Bg5 {[%emt 0:00:21]} g6 {[%emt 0:02:49]} 3. Bxf6 {[%emt 0:00:39]} exf6 {[%emt 0:00:09]} 4. e3 {[%emt 0:00:06]} Bg7 {[%emt 0:01:22]} 5. Ne2 {[%emt 0:00:03]} O-O {[%emt 0:01:44]} 6. Nf4 {[%emt 0:00:03]} d5 {[%emt 0:03:08]} 7. h4 {[%emt 0:00:36]} c5 {[%emt 0:07:21]} 8. c3 {[%emt 0:01:28]} cxd4 {[%emt 0:04:47]} 9. cxd4 {[%emt 0:00:07]} Nc6 {[%emt 0:02:06]} 10. Nc3 {[%emt 0:00:21]} Be6 {[%emt 0:00:50]} 11. h5 {[%emt 0:00:14]} g5 {[%emt 0:00:51] [#]} 12. h6 $1 {[%emt 0:00:40]} Bh8 {[%emt 0:00:22]} 13. Nh5 {[%emt 0:00:06]} Qd7 {[%emt 0:06:53]} 14. Bd3 {[%emt 0:01:41]} Nb4 {[%emt 0:01:26]} 15. Bb1 {[%emt 0:00:24]} Bg4 {[%emt 0:01:17] [#]} (15... Rfe8 $16 16. a3 Nc6) 16. Qb3 $1 {[%emt 0:00:20]} Bxh5 {[%emt 0:01:50]} (16... Qd6 $142 17. a3 Nc6 18. Qxd5 Qe7) 17. Rxh5 {[%emt 0:00:05]} ({Weaker is} 17. Qxb4 Bg6 $16) 17... Qg4 {[%emt 0:00:45]} 18. Rh2 {[%emt 0:00:05]} ({Weaker is} 18. Qxb4 Qxh5 19. Nxd5 Rae8 $16) 18... Nc6 {[%emt 0:01:21]} 19. Qxd5 {[%emt 0:00:24]} ({Weaker is} 19. Qxb7 Qe6 $16) 19... Rfe8 {[%emt 0:02:48] [#]} (19... Rad8 $142 20. Qe4 Qxe4 21. Bxe4 Rfe8) 20. Bxh7+ $1 {[%emt 0:04:11]} Kf8 {[%emt 0:00:43]} 21. Qc5+ {[%emt 0:00:20]} Ne7 {[%emt 0:05:09]} 22. Bd3 {[%emt 0:00:44]} b6 {[%emt 0:04:13]} 23. Qa3 {[%emt 0:00:42]} Qd7 {[%emt 0:00:12]} 24. O-O-O {[%emt 0:01:07]} a6 {[%emt 0:00:52]} 25. Kb1 {[%emt 0:01:00]} b5 {[%emt 0:00:35]} 26. Ne4 {[%emt 0:00:17]} b4 {[%emt 0:00:51]} 27. Qxb4 {[%emt 0:01:40]} Rab8 {[%emt 0:00:20]} 28. Qd6 {[%emt 0:01:34]} Qa4 {[%emt 0:01:36]} 29. Nc3 {[%emt 0:04:27]} Qa5 {[%emt 0:01:19]} 30. Qc5 {[%emt 0:00:05]} Qd8 {[%emt 0:00:47]} 31. Rhh1 {[%emt 0:00:19]} Qd7 {[%emt 0:00:31]} 32. Rc1 {[%emt 0:01:21]} Qb7 {[%emt 0:00:50]} 33. Qa3 {[%emt 0:01:37]} Qxg2 {[%emt 0:00:55]} 34. Ne4 {[%emt 0:01:51]} Rb6 {[%emt 0:01:42]} 35. b3 {[%emt 0:05:20]} f5 {[%emt 0:05:31] [#]} 36. Rcg1 $1 {[%emt 0:00:58]} Rxh6 {[%emt 0:01:23]} 37. Rxg2 {[%emt 0:00:27]} Rxh1+ {[%emt 0:00:05]} 38. Kb2 {[%emt 0:00:03]} fxe4 {[%emt 0:00:10]} 39. Bxe4 {[%emt 0:00:02]} Re1 {[%emt 0:00:49]} 40. Bd3 {[%emt 0:01:04]} Rc8 {[%emt 0:00:27]} 41. Qxa6 {[%emt 0:00:40]} Rd1 {[%emt 0:00:30]} 42. f4 {[%emt 0:00:50]} g4 {[%emt 0:00:55]} 43. Bc2 {[%emt 0:01:36]} Re1 {[%emt 0:01:21]} 44. Rxg4 {[%emt 0:00:12]} Rc6 {[%emt 0:00:08]} 45. Qa8+ {[%emt 0:00:32]} Rc8 {[%emt 0:00:06]} 46. Qa6 $2 {[%emt 0:00:19]} ({White has to play} 46. Qf3 $18 Bf6 47. Qf2) 46... Rc6 $1 {[%emt 0:00:10]} 47. Qd3 {[%emt 0:00:02]} Rh1 {[%emt 0:01:23]} 48. Rg2 {[%emt 0:00:35]} Re1 {[%emt 0:00:20]} 49. a4 {[%emt 0:02:47]} Rd6 {[%emt 0:00:35]} 50. Qb5 {[%emt 0:00:37]} Nc6 {[%emt 0:04:01]} 51. Be4 {[%emt 0:03:44]} Rxe3 {[%emt 0:01:18]} 52. Bxc6 {[%emt 0:00:27]} Rxd4 {[%emt 0:00:10]} 53. Ka3 {[%emt 0:00:39]} Bf6 {[%emt 0:00:45]} 54. Bd5 {[%emt 0:00:58]} Re1 {[%emt 0:01:11]} 55. Qb8+ {[%emt 0:01:47]} Re8 {[%emt 0:00:05] [#]} 56. Rg8+ $3 {[%emt 0:00:14] Decoy} Kxg8 {[%emt 0:00:10]} 57. Qxe8+ {[%emt 0:00:03] Double Attack} 1-0

[Event "Asian Academies Hybrid Chess-ch 2021"]
[Site "Tornelo"]
[Date "2021.11.21"]
[Round "4.2"]
[White "Khaled waleed Abdullah"]
[Black "Alizadeh, Amirmohammad"]
[Result "1-0"]
[ECO "A05"]
[WhiteElo "1568"]
[BlackElo "1792"]
[Annotator "NA RC"]
[PlyCount "75"]
[EventDate "2021.11.21"]
[EventCountry "NET"]
[SourceTitle "playchess.com"]
[Source "ChessBase"]
[SourceQuality "1"]
[TimeControl "3600+30"]

1. e4 {[%emt 0:00:30]} c5 {[%emt 0:00:34]} 2. Nf3 {[%emt 0:00:12]} Nc6 {[%emt 0:00:03]} 3. d3 {[%emt 0:04:28]} Nf6 {[%emt 0:00:36]} 4. g3 {[%emt 0:04:48]} d6 {[%emt 0:00:50]} 5. Bg2 {[%emt 0:00:05]} g6 {[%emt 0:00:26]} 6. O-O {[%emt 0:00:05]} Bg7 {[%emt 0:00:04]} 7. Re1 {[%emt 0:00:01]} O-O {[%emt 0:00:30]} 8. c3 {[%emt 0:00:13]} Bg4 {[%emt 0:00:23]} 9. Nbd2 {[%emt 0:04:00]} b5 {[%emt 0:01:56]} 10. h3 {[%emt 0:02:14]} Bxf3 {[%emt 0:01:31]} 11. Nxf3 {[%emt 0:02:07]} b4 {[%emt 0:00:20]} 12. d4 {[%emt 0:03:27]} cxd4 {[%emt 0:01:19]} 13. cxd4 {[%emt 0:00:07]} d5 {[%emt 0:00:06]} 14. e5 {[%emt 0:02:45]} Ne4 {[%emt 0:00:04]} 15. Be3 {[%emt 0:02:21]} e6 {[%emt 0:02:11]} 16. Rc1 {[%emt 0:01:21]} Rc8 {[%emt 0:00:13]} 17. Nd2 {[%emt 0:02:24]} Nxd2 {[%emt 0:00:48]} 18. Qxd2 {[%emt 0:00:04]} Qa5 {[%emt 0:01:11]} 19. b3 {[%emt 0:02:20]} Qb6 {[%emt 0:03:56]} 20. Bf1 {[%emt 0:01:54]} f6 {[%emt 0:06:47]} 21. f4 {[%emt 0:03:01]} fxe5 {[%emt 0:01:44]} 22. dxe5 {[%emt 0:01:02]} Qb7 {[%emt 0:01:57]} 23. Bg2 {[%emt 0:02:30]} Rf7 {[%emt 0:03:58]} 24. h4 {[%emt 0:03:16]} Rfc7 {[%emt 0:03:38]} 25. Qd1 {[%emt 0:05:54]} Ne7 {[%emt 0:01:29]} 26. Qd2 {[%emt 0:08:26]} Nf5 {[%emt 0:05:37]} 27. Bf2 {[%emt 0:00:06]} Bf8 {[%emt 0:02:49]} 28. g4 {[%emt 0:02:12]} Nh6 {[%emt 0:01:52]} 29. Bf3 {[%emt 0:03:31]} Rc3 {[%emt 0:00:34]} 30. Kg2 {[%emt 0:01:59]} a5 {[%emt 0:04:51]} 31. Bd4 {[%emt 0:00:42]} R3c6 {[%emt 0:01:06]} 32. Bb2 {[%emt 0:02:25]} R8c7 {[%emt 0:01:51]} 33. Rxc6 {[%emt 0:01:32]} Rxc6 {[%emt 0:00:04]} 34. Rc1 {[%emt 0:00:08]} Qc8 {[%emt 0:00:07]} 35. Rxc6 {[%emt 0:00:51]} Qxc6 {[%emt 0:00:06]} 36. Qc1 {[%emt 0:00:03]} Qd7 {[%emt 0:13:22]} 37. Bd4 {[%emt 0:01:25]} Qa4 {[%emt 0:03:33]} 38. bxa4 {[%emt 0:00:07]} 1-0